Workbook

Sheet Rashod
B3: Budžet događaja za [Ime događaja]
H4: Rashod
H6: Procenjeno | I6: Stvarno
C7: Ukupan rashod | H7: =SUM(D14,D22,D28,D35,H14,H22,H27) -> 1,145.00 RSD | I7: =SUM(E14,E22,E28,E35,I14,I22,I27) -> 395.00 RSD
C9: Lokacija | D9: Procenjeno | E9: Stvarno | G9: Osveženje | H9: Procenjeno | I9: Stvarno
C10: Naknade za sobu i predsoblje | D10: 500.00 RSD | E10: 250.00 RSD | G10: Hrana
C11: Osoblje na lokaciji | D11: 400.00 RSD | E11: 50.00 RSD | G11: Pića
C12: Oprema | G12: Posteljina
C13: Stolovi i stolice | G13: Osoblje i napojnice
C14: Zbir | D14: =SUBTOTAL(109,Tabela1[Procenjeno]) -> 900.00 RSD | E14: =SUBTOTAL(109,Tabela1[Stvarno]) -> 300.00 RSD | G14: Zbir | H14: =SUBTOTAL(109,Tabela5[Procenjeno]) -> 0.00 RSD | I14: =SUBTOTAL(109,Tabela5[Stvarno]) -> 0.00 RSD
C16: Dekoracija | D16: Procenjeno | E16: Stvarno | G16: Program | H16: Procenjeno | I16: Stvarno
C17: Cveće | D17: 200.00 RSD | E17: 50.00 RSD | G17: Izvođači
C18: Sveće | G18: Zvučnici
C19: Rasveta | G19: Putovanje
C20: Baloni | G20: Hotel
C21: Papirni materijal | G21: Drugo
C22: Zbir | D22: =SUBTOTAL(109,Tabela2[Procenjeno]) -> 200.00 RSD | E22: =SUBTOTAL(109,Tabela2[Stvarno]) -> 50.00 RSD | G22: Zbir | H22: =SUBTOTAL(109,Tabela6[Procenjeno]) -> 0.00 RSD | I22: =SUBTOTAL(109,Tabela6[Stvarno]) -> 0.00 RSD
C24: Publicitet | D24: Procenjeno | E24: Stvarno | G24: Nagrade | H24: Procenjeno | I24: Stvarno
C25: Grafički radovi | D25: 45.00 RSD | E25: 45.00 RSD | G25: Trake/plakete/trofeji
C26: Fotokopiranje/štampanje | G26: Pokloni
C27: Poštarina | G27: Zbir | H27: =SUBTOTAL(109,Tabela7[Procenjeno]) -> 0.00 RSD | I27: =SUBTOTAL(109,Tabela7[Stvarno]) -> 0.00 RSD
C28: Zbir | D28: =SUBTOTAL(109,Tabela3[Procenjeno]) -> 45.00 RSD | E28: =SUBTOTAL(109,Tabela3[Stvarno]) -> 45.00 RSD
C30: Razno | D30: Procenjeno | E30: Stvarno
C31: Telefon
C32: Prevoz
C33: Kancelarijski materijal
C34: Usluge faksa
C35: Zbir | D35: =SUBTOTAL(109,Tabela4[Procenjeno]) -> 0.00 RSD | E35: =SUBTOTAL(109,Tabela4[Stvarno]) -> 0.00 RSD

Sheet Prihod
B3: Budžet događaja za [Ime događaja]
F4: Prihod
F6: Procenjeno | G6: Stvarno
B7: Ukupan prihod | F7: =SUM(F14,F21,F28,F36) -> 1,936.00 RSD | G7: =SUM(G14,G21,G28,G36) -> 1,831.00 RSD
B9: Ulaz
B10: Procenjeno | C10: Stvarno | F10: Procenjeno | G10: Stvarno
B11: 300 | C11: 278 | D11: Odrasli @ | E11: 5.00 RSD | F11: =B11*E11 -> 1,500.00 RSD | G11: =C11*E11 -> 1,390.00 RSD
B12: 197 | C12: 195 | D12: Deca @ | E12: 2.00 RSD | F12: =B12*E12 -> 394.00 RSD | G12: =C12*E12 -> 390.00 RSD
B13: 42 | C13: 51 | D13: Drugo @ | E13: 1.00 RSD | F13: =B13*E13 -> 42.00 RSD | G13: =C13*E13 -> 51.00 RSD
F14: =SUM(F11:F13) -> 1,936.00 RSD | G14: =SUM(G11:G13) -> 1,831.00 RSD
B16: Reklame u programu
B17: Procenjeno | C17: Stvarno | F17: Procenjeno | G17: Stvarno
D18: Naslovne stranice @ | F18: =B18*E18 -> 0.00 RSD | G18: =C18*E18 -> 0.00 RSD
D19: Polovine stranice @ | F19: =B19*E19 -> 0.00 RSD | G19: =C19*E19 -> 0.00 RSD
D20: Četvrtine stranice @ | F20: =B20*E20 -> 0.00 RSD | G20: =C20*E20 -> 0.00 RSD
F21: =SUM(F18:F20) -> 0.00 RSD | G21: =SUM(G18:G20) -> 0.00 RSD
B23: Izlagači/prodavci
B24: Procenjeno | C24: Stvarno | F24: Procenjeno | G24: Stvarno
D25: Veliki štandovi @ | F25: =B25*E25 -> 0.00 RSD | G25: =C25*E25 -> 0.00 RSD
D26: Srednji štandovi @ | F26: =B26*E26 -> 0.00 RSD | G26: =C26*E26 -> 0.00 RSD
D27: Mali štandovi @ | F27: =B27*E27 -> 0.00 RSD | G27: =C27*E27 -> 0.00 RSD
F28: =SUM(F25:F27) -> 0.00 RSD | G28: =SUM(G25:G27) -> 0.00 RSD
B30: Prodaja artikala
B31: Procenjeno | C31: Stvarno | F31: Procenjeno | G31: Stvarno
D32: Artikli @ | F32: =B32*E32 -> 0.00 RSD | G32: =C32*E32 -> 0.00 RSD
D33: Artikli @ | F33: =B33*E33 -> 0.00 RSD | G33: =C33*E33 -> 0.00 RSD
D34: Artikli @ | F34: =B34*E34 -> 0.00 RSD | G34: =C34*E34 -> 0.00 RSD
D35: Artikli @ | F35: =B35*E35 -> 0.00 RSD | G35: =C35*E35 -> 0.00 RSD
F36: =SUM(F32:F35) -> 0.00 RSD | G36: =SUM(G32:G35) -> 0.00 RSD

Sheet Rezime
B3: Budžet događaja za [Ime događaja]
F4: Rezime profita i gubitaka
F6: Procenjeno | G6: Stvarno
B7: Ukupni prihod | F7: =Prihod!F7 -> 1,936.00 RSD | G7: =Prihod!G7 -> 1,831.00 RSD
B8: Ukupan rashod | F8: =Rashod!H7 -> 1,145.00 RSD | G8: =Rashod!I7 -> 395.00 RSD
B9: Ukupni profit (ili gubitak) | F9: =F7-F8 -> 791.00 RSD | G9: =G7-G8 -> 1,436.00 RSD
